fUSD/lending_fUSD_20241028
["ID","MTS","AMOUNT","RATE_DAILY","PERIOD"]
[340918751,1730082640491,-184.299192,0.0002709,7]
[340918752,1730082640501,-184.299192,0.0002709,7]
[340918753,1730082640511,-151.0,0.000271,7]
[340918754,1730082640522,-151.0,0.000271,7]
[340918755,1730082640532,-1148.561169,0.000271,7]
[340918756,1730082640542,-1148.561169,0.000271,7]
[340918757,1730082640551,-151.0,0.000271,7]
[340918758,1730082640561,-220.701168,0.000271,7]
[340918759,1730082640570,-151.0,0.000271,7]
[340918760,1730082640580,-151.0,0.000271,7]
[340918761,1730082640589,-474.08469,0.000271,7]
[340918762,1730082640598,-474.08469,0.000271,7]
[340918763,1730082640608,-499.259375,0.000271,7]
[340918764,1730082640617,-499.259375,0.000271,7]
[340918765,1730082640626,-502.80774975,0.000271,30]
[340918766,1730082640636,-297.44535354,0.000271,30]
[340918767,1730082640645,-500.0,0.000271,30]
[340918768,1730082640655,-500.0,0.000271,30]
[340918769,1730082640664,-500.0,0.000271,30]
[340918770,1730082640674,-500.0,0.000271,30]
[340918771,1730082640683,-500.0,0.000271,30]
[340918772,1730082640693,-500.0,0.000271,30]
[340918773,1730082640702,-500.0,0.000271,30]
[340918774,1730082640855,-500.0,0.000271,30]
[340918775,1730082640873,-55.05385773,0.000271,30]
[340918776,1730082641023,-444.94614227,0.000271,30]
[340918777,1730082641032,-500.0,0.000271,30]
[340918778,1730082641042,-500.0,0.000271,30]
[340918779,1730082641051,-248.95441,0.000271,30]
[340918785,1730082643416,-251.04559,0.000271,30]
[340918786,1730082643427,-269.50567291,0.000271,30]
[340918794,1730083832413,-156.11,0.00015342,2]
[340918795,1730083832422,-293.89,0.00015535,2]
[340918796,1730083832433,-1367.66716156,0.00015535,2]
[340918797,1730083832442,-151.22285597,0.00015635,2]
[340918798,1730083832451,-1258.13379432,0.00017307,2]
[340918799,1730083832603,-403.42336724,0.00017307,2]
[340918800,1730083832613,-1570.7140001,0.00019078,2]
[340918801,1730083832624,-90.84316146,0.00019078,2]
[340918802,1730083832633,-156.0,0.00019178,2]
[340918803,1730083832642,-553.15683854,0.0002535,2]
[340918804,1730083832653,-1768.23316146,0.0002535,2]
[340918805,1730083832662,-173.84,0.00026329,2]
[340918806,1730083832671,-230.49432709,0.000271,30]
[340918807,1730083832680,-500.0,0.000271,30]
[340918808,1730083832690,-456.85286036,0.000271,30]
[340918809,1730083832701,-43.14713964,0.000271,30]
[340918810,1730083832711,-500.0,0.000271,30]
[340918811,1730083832720,-500.0,0.000271,30]
[340918812,1730083832730,-500.0,0.000271,30]
[340918813,1730083832739,-49.75182014,0.000271,30]
[340918832,1730083838594,-450.24817986,0.000271,30]
[340918833,1730083838603,-188.00030567,0.000271,30]
[340918834,1730083838614,-311.99969433,0.000271,30]
[340918835,1730083838623,-500.0,0.000271,30]
[340918836,1730083838632,-500.0,0.000271,30]
[340918837,1730083838641,-500.0,0.000271,30]
[340918838,1730083838650,-500.0,0.000271,30]
[340918839,1730083838659,-500.0,0.000271,30]
[340918840,1730083838668,-500.0,0.000271,30]
[340918841,1730083838677,-8991.41243651,0.00027106,2]
[340918842,1730083838688,-483.09332129,0.00027106,2]
[340918843,1730083838697,-1982.33719871,0.00027124,2]
[340918844,1730083838707,-665.30278123,0.00027124,2]
[340918845,1730083838864,-944.18934277,0.00027124,2]
[340918859,1730083844918,-1312.04726884,0.00027124,2]
[340918860,1730083846657,-150.06814575,0.00027124,2]
[340918861,1730083846666,-222.12974374,0.000272,2]
[340918871,1730085031569,-420.75153955,0.00015242,2]
[340918877,1730085031768,-728.05791011,0.00015242,2]
[340918878,1730085031780,-858.16390953,0.00015242,2]
[340918879,1730085031792,-450.80231563,0.00015242,2]
[340918880,1730085031804,-1268.82348169,0.00015242,2]
[340918881,1730085031813,-160.2,0.00015342,2]
[340918882,1730085031822,-154.74,0.00015342,2]
[340918883,1730085031831,-530.32835601,0.00015342,2]
[340918884,1730085031840,-155.64,0.00016712,2]
[340918885,1730085031849,-226.0,0.00019451,2]
[340918886,1730085031857,-1878.623778,0.00021086,2]
[340918887,1730085031866,-633.43966211,0.00021192,2]
[340918888,1730085031975,-2320.96704111,0.00021192,2]
[340918889,1730085031986,-2689.22329678,0.00021192,2]
[340918890,1730085031995,-150.99,0.00021192,2]
[340918891,1730085032004,-3282.36,0.000229,2]
[340918892,1730085032013,-1427.39,0.000229,2]
[340918894,1730085032023,-282.0,0.000232,2]
[340918896,1730085032033,-291.8,0.00024761,2]
[340918898,1730085032042,-708.4655,0.0002683,2]
[340918900,1730085032051,-4662.8301265,0.0002693,2]
[340918909,1730085037879,-3579.09142329,0.0002693,2]
[340918910,1730085037889,-397.0,0.000272,11]
[340918911,1730085037898,-156.0,0.00027386,2]
[340918912,1730085037907,-387.62608634,0.00027387,2]
[340918922,1730085039683,-3898.18961486,0.00027387,2]
[340918923,1730085039692,-8034.5131671,0.00027387,2]
[340918924,1730085039702,-7501.96669788,0.00027501,2]
[340918925,1730085039714,-165.74,0.00027649,2]
[340918926,1730085039723,-1617.27,0.00028674,2]
[340918927,1730085039732,-562.56,0.00028974,2]
[340918928,1730085039741,-167.63,0.00029635,2]
[340918929,1730085039750,-500.7480397,0.0003,2]
[340918930,1730085039760,-250.0,0.00030283,2]
[340918931,1730085039769,-155.828,0.00030283,2]
[340918932,1730085039778,-155.828,0.00030283,2]
[340918933,1730085039790,-155.828,0.00030283,2]
[340918934,1730085039799,-155.828,0.00030283,2]
[340918935,1730085039808,-155.828,0.00030283,2]
[340918936,1730085039818,-155.828,0.00030283,2]
[340918937,1730085039827,-155.828,0.00030283,2]
[340918938,1730085039836,-155.828,0.00030283,2]
[340918939,1730085039846,-150.0,0.00030347,7]
[340918940,1730085039854,-6283.61,0.00030523,2]
[340918941,1730085039863,-1026.14,0.00030676,2]
[340918942,1730085039873,-250.0,0.00030736,2]
[340918943,1730085039882,-177.04,0.00030818,2]
[340918944,1730085039892,-832.23,0.000311,2]
[340918945,1730085039901,-200.0,0.00031117,2]
[340918946,1730085039910,-562.56,0.00031238,2]
[340918947,1730085039921,-1000.0,0.00031405,2]
[340918948,1730085039930,-200.0,0.00031441,2]
[340918949,1730085039940,-2183.42015525,0.000315,30]
[340918950,1730085039950,-250.0,0.00031783,2]
[340918951,1730085039959,-156.11,0.0003272,2]
[340918952,1730085039968,-163.75699116,0.00032877,2]
[340918953,1730085039978,-562.56,0.00033501,2]
[340918954,1730085039987,-805.20067095,0.00033573,15]
[340918955,1730085039997,-500.0,0.00033873,2]
[340918956,1730085040006,-156.67,0.00033883,10]
[340918957,1730085040015,-10407.2706167,0.00033883,7]
[340918958,1730085040024,-500.0,0.00033892,7]
[340918959,1730085040033,-577.64058752,0.00033892,7]
[340918960,1730085040043,-176.0,0.00033893,2]
[340918961,1730085040052,-85066.49050985,0.00033893,2]
[340918962,1730085043000,-374.38,0.00033893,2]
[340918963,1730085043292,-5479.18,0.00033893,2]
[340918966,1730085043304,-8716.58972298,0.00033893,2]
[340918991,1730085045769,-8010.48867225,0.00033893,2]
[340918996,1730085646159,27621.21183788,0.00024,60]
[340919018,1730086232000,-178.71,0.00015342,2]
[340919019,1730086232010,-150.43260328,0.00015342,2]
[340919020,1730086232021,-5.67739672,0.00015342,2]
[340919021,1730086232030,-294.32260328,0.0002,2]
[340919022,1730086232041,-775.87557787,0.0002,2]
[340919023,1730086232051,-3501.10403367,0.0002,2]
[340919024,1730086232060,-5583.59852688,0.0002,2]
[340919025,1730086232069,-6759.5917,0.00020586,2]
[340919026,1730086232078,-8193.0944,0.00020686,2]
[340919027,1730086232087,-200.0,0.00023,2]
[340919028,1730086232096,-1110.58076369,0.000241,2]
[340919029,1730086232105,-150.99,0.000241,2]
[340919030,1730086232114,-1563.13610588,0.00025,2]
[340919031,1730086232123,-537.83,0.00030801,2]
[340919032,1730086232132,-150.0,0.00031664,7]
[340919034,1730086232143,-250.0,0.00032226,2]
[340919035,1730086232152,-23900.0,0.00032485,2]
[340919036,1730086232161,-250.0,0.00032558,2]
[340919037,1730086232170,-878.08,0.00032789,2]
[340919038,1730086232178,-182.0,0.00032836,2]
[340919039,1730086232187,-163.01,0.00032944,2]
[340919040,1730086232196,-537.83,0.00033065,2]
[340919041,1730086232205,-200.0,0.00033068,2]
[340919042,1730086232214,-17602.4592,0.0003311,2]
[340919043,1730086232225,-8444.5049,0.0003311,2]
[340919044,1730086232236,-4793.9139,0.0003311,2]
[340919045,1730086232248,-250.0,0.00033142,120]
[340919046,1730086232260,-155.41,0.00033159,2]
[340919047,1730086232271,-1000.0,0.00033196,2]
[340919048,1730086232283,-233.49967687,0.00033209,2]
[340919049,1730086232294,-724.6806039,0.00033444,15]
[340919050,1730086232304,-151.0,0.00033454,7]
[340919051,1730086232314,-151.0,0.00033454,7]
[340919052,1730086232326,-177.0,0.00033454,2]
[340919053,1730086232337,-16287.8117177,0.00033454,2]
[340919054,1730086237745,-1698.02186945,0.00033454,2]
[340919055,1730086237760,-4461.84790807,0.00033454,2]
[340919056,1730086237774,-5533.35431226,0.00033454,2]
[340919057,1730086237788,-1068.97248475,0.00033454,2]
[340919058,1730086237801,-358.33485164,0.00033454,2]
[340919059,1730086237870,-264.24,0.00033454,2]
[340919060,1730086237885,-1002.10843179,0.00033454,2]
[340919061,1730086237900,-4392.91305409,0.00033454,2]
[340919062,1730086237914,-570.00767865,0.00033454,2]
[340919063,1730086237928,-292.25877192,0.00033454,2]
[340919064,1730086237940,-566.76354058,0.00033454,2]
[340919065,1730086238001,-9455.58307413,0.00033454,2]
[340919066,1730086238014,-674.96631306,0.00033454,2]
[340919067,1730086238130,-540.65357155,0.00033454,2]
[340919068,1730086239817,-209.0,0.000244,2]
[340919069,1730086239829,-125.34473846,0.00033454,2]
[340919070,1730086239948,-3806.57608693,0.00033454,2]
[340919071,1730086239961,-347.59207085,0.00033454,2]
[340919072,1730086239973,-1466.28995734,0.00033454,2]
[340919073,1730086240076,-1554.44923841,0.00033454,2]
[340919074,1730086240090,-2500.0,0.00033454,2]
[340919075,1730086240102,-380.39715353,0.00033454,2]
[340919084,1730086242937,-288.6682719,0.00033454,2]
[340919085,1730086243063,-1582.3829376,0.00033454,2]
[340919086,1730086243075,-1504.52387064,0.00033454,2]
[340919132,1730086246092,-2837.71772373,0.00033454,2]
[340919189,1730087432294,-160.2,0.00015342,2]
[340919190,1730087432304,-117.81587842,0.00019725,2]
[340919191,1730087432317,-182.18412158,0.00019725,2]
[340919192,1730087432326,-420.0,0.00021484,2]
[340919193,1730087432335,-587.0,0.00023401,2]
[340919194,1730087432344,-823.0,0.00025488,2]
[340919195,1730087432354,-439.04,0.00026909,2]
[340919196,1730087432363,-430.0,0.00027761,2]
[340919197,1730087432373,-3139.75496776,0.00031521,2]
[340919198,1730087432462,-38305.24503224,0.00031521,2]
[340919199,1730087432471,-150.0,0.00031562,2]
[340919200,1730087432481,-484.04,0.00031586,2]
[340919201,1730087432490,-1000.0,0.000321,2]
[340919202,1730087432499,-258.35556385,0.00032877,2]
[340919203,1730087432508,-250.0,0.00033064,120]
[340919204,1730087432517,-150.0,0.00033106,7]
[340919205,1730087432526,-800.0,0.00033159,2]
[340919206,1730087432536,-250.0,0.00033193,2]
[340919207,1730087432546,-500.0,0.00033454,2]
[340919208,1730087432555,-500.0,0.00033454,2]
[340919209,1730087432565,-500.0,0.00033454,2]
[340919210,1730087432574,-202.11168751,0.00033454,30]
[340919211,1730087432583,-1405.8935,0.00033792,2]
[340919212,1730087432593,-397.0,0.000338,19]
[340919213,1730087432602,-484.04,0.00033849,2]
[340919214,1730087432612,-1735.38876793,0.00033892,2]
[340919215,1730087432622,-7012.1299855,0.00033904,2]
[340919216,1730087432631,-500.0,0.00033927,2]
[340919217,1730087432640,-3740.4502507,0.0003416,2]
[340919218,1730087432650,-177.04,0.00034183,2]
[340919219,1730087432659,-200.0,0.0003432,2]
[340919220,1730087432668,-150.0,0.00034548,10]
[340919221,1730087432679,-234.11,0.00034584,3]
[340919222,1730087432688,-401.53622453,0.00034584,2]
[340919223,1730087432697,-11012.65899317,0.00034594,8]
[340919249,1730087438240,-529.19675842,0.00034504,2]
[340919401,1730087444289,-387.87123895,0.00034504,2]
[340919402,1730087444301,-2475.00000017,0.00034504,2]
[340919403,1730087444312,-672.00500383,0.00034504,2]
[340919406,1730087444563,-0.55302485,0.00034504,2]
[340919410,1730088269021,1613.44,0.000137,2]
[340919417,1730088632230,-174.39409709,0.00015242,2]
[340919418,1730088632240,-395.69590291,0.00015342,2]
[340919419,1730088632252,-104.30409709,0.00015342,2]
[340919420,1730088632262,-174.99,0.00015342,2]
[340919421,1730088632271,-127.48442306,0.00015342,2]
[340919422,1730088632283,-28.62557694,0.00015342,2]
[340919423,1730088632292,-8826.12245879,0.00015342,2]
[340919424,1730088632302,-658.25,0.00015342,2]
[340919425,1730088632313,-640.69232005,0.00015342,2]
[340919426,1730088632324,-485.2900896,0.00015342,2]
[340919427,1730088632335,-720.61534001,0.00015342,2]
[340919428,1730088632346,-2109.43741355,0.00015342,2]
[340919429,1730088632357,-14098.27099067,0.00015342,2]
[340919431,1730088632367,-190.10010654,0.00015533,2]
[340919432,1730088632376,-274.0,0.000236,2]
[340919435,1730088632385,-175.35,0.00025829,2]
[340919437,1730088632394,-300.0,0.00027253,2]
[340919438,1730088632403,-226.63,0.00027254,2]
[340919439,1730088632412,-1133.70432587,0.00027254,2]
[340919440,1730088632422,-3327.96126539,0.00027254,2]
[340919441,1730088632433,-1209.49440874,0.00027254,2]
[340919442,1730088632443,-280.23087923,0.000277,2]
[340919443,1730088632452,-62.69830803,0.0003017,2]
[340919444,1730088637979,-414.98169197,0.0003017,2]
[340919445,1730088637988,-49.5104621,0.0003017,2]
[340919446,1730088638033,-1569.6995379,0.0003017,2]
[340919447,1730088638042,-733.33,0.00031707,2]
[340919448,1730088638051,-540.27,0.00031875,2]
[340919449,1730088638061,-661.67,0.00031894,2]
[340919450,1730088638070,-640.0,0.00032078,2]
[340919451,1730088638079,-789.56,0.00032241,2]
[340919452,1730088638088,-148.26452388,0.00032285,7]
[340919453,1730088638100,-1.73547612,0.00032285,7]
[340919454,1730088638109,-250.0,0.00032328,2]
[340919455,1730088638118,-454.0,0.000324,2]
[340919456,1730088638127,-477.68,0.00032433,2]
[340919457,1730088638136,-163.80638074,0.00032877,2]
[340919458,1730088638145,-504.11944378,0.00033165,30]
[340919459,1730088638156,-729.82228752,0.00033165,30]
[340919460,1730088638167,-67.97035844,0.00033165,30]
[340919461,1730088638177,-221.42990446,0.00033165,30]
[340919462,1730088638188,-778.57009554,0.00033165,30]
[340919463,1730088638199,-1000.0,0.00033165,30]
[340919464,1730088638208,-404.59416994,0.00033165,30]
[340919465,1730088638219,-595.40583006,0.00033165,30]
[340919466,1730088638229,-1000.0,0.00033165,30]
[340919467,1730088638240,-1000.0,0.00033165,30]
[340919468,1730088638249,-1000.0,0.00033165,30]
[340919469,1730088638258,-652.21254351,0.00033219,15]
[340919470,1730088638268,-2521.592137,0.00033221,7]
[340919471,1730088638277,-7385.7744067,0.00033231,2]
[340919472,1730088638307,-3256.0537303,0.00033231,2]
[340919473,1730088638319,-3217.93871559,0.00033231,2]
[340919474,1730088638334,-450.87290596,0.00033231,2]
[340919475,1730088638345,-592.08569065,0.00033231,2]
[340919476,1730088638405,-1313.80063814,0.00033231,2]
[340919480,1730088639978,-1160.93975803,0.00033231,2]
[340919481,1730088640085,-482.7614514,0.00033231,2]
[340919482,1730088640096,-251.73152092,0.00033231,2]
[340919635,1730088643387,-403.94395771,0.00033231,2]
[340919657,1730088645954,-1301.37556257,0.00033231,2]
[340919678,1730089832105,-1000.0,0.00015,2]
[340919681,1730089832216,-482.73538408,0.00015,2]
[340919682,1730089832271,-41141.78810802,0.00015,2]
[340919683,1730089832381,-6336.03926773,0.00015,2]
[340919684,1730089838529,-8940.86654974,0.00015,2]
[340919708,1730090495653,-4282.38147153,0.000149,2]
[340919709,1730090495677,-8079.04440822,0.00015,2]
[340919710,1730090495701,-250.0,0.00015,2]
[340919711,1730090495723,-192.36,0.00015342,2]
[340919712,1730090495745,-160.2,0.00015342,2]
[340919713,1730090495771,-156.62,0.00015342,2]
[340919714,1730090495791,-198.0,0.000236,2]
[340919715,1730090495811,-175.35,0.00025913,2]
[340919716,1730090534372,-525.34,0.00030402,2]
[340919717,1730090645957,-150.0,0.00032099,7]
[340919718,1730090645983,-1055.65,0.00032099,2]
[340919719,1730090646005,-472.7,0.00032146,2]
[340919720,1730090646027,-150.0,0.00032177,2]
[340919721,1730090646050,-686.64,0.00032249,2]
[340919722,1730090646076,-512.0,0.00032253,2]
[340919723,1730090646101,-23900.0,0.00032388,2]
[340919724,1730090646124,-250.0,0.00032406,2]
[340919725,1730090646149,-223.24,0.00032513,2]
[340919726,1730090646173,-750.94,0.00032513,2]
[340919727,1730090646197,-5139.79,0.00032532,2]
[340919728,1730090646220,-488.0,0.00032708,2]
[340919729,1730090646244,-21564.385016,0.00032961,7]
[340919730,1730090646269,-71637.35910425,0.00032971,2]
[340919740,1730091038636,-174.99,0.00015342,2]
[340919741,1730091038648,-175.0,0.00026,2]
[340919742,1730091038662,-499.07,0.00030927,2]
[340919743,1730091038671,-150.0,0.00032467,2]
[340919744,1730091038681,-12684.78476518,0.00032468,2]
[340919745,1730091038693,-14073.891,0.00032468,2]
[340919753,1730091040651,-2463.13750764,0.00032468,2]
[340920076,1730091044096,-139789.93854111,0.00032468,2]
[340920209,1730091046376,-1363.81406113,0.00032468,2]
[340920210,1730091046485,-479.60091407,0.00032468,2]
[340920215,1730092202296,-500.0,0.00032468,120]
[340920218,1730092231405,-156.11,0.00015342,2]
[340920219,1730092231414,-508.87,0.00029333,2]
[340920220,1730092231423,-37539.92431919,0.00030504,2]
[340920254,1730092242589,-246.0,0.000246,2]
[340920255,1730092242598,-6748.46478053,0.00030504,2]
[340920256,1730092242639,-469.34362894,0.00030504,2]
[340920264,1730092245534,-15234.62792179,0.00030504,2]
[340920265,1730092245546,-3937.11763915,0.00030504,2]
[340920266,1730092245802,-13187.97007256,0.00030504,2]
[340920273,1730093357381,-175.0,0.00015,2]
[340920293,1730093431729,-35144.22230717,0.00015,2]
[340920294,1730093431738,-291.74,0.00015342,2]
[340920295,1730093431747,-156.62,0.00015342,2]
[340920296,1730093431756,-852.49187598,0.000159,2]
[340920297,1730093431765,-200.0,0.0001634,2]
[340920298,1730093431774,-175.35,0.00024721,2]
[340920299,1730093431783,-530.69,0.00028984,2]
[340920300,1730093431791,-1051.27520469,0.000302,2]
[340920301,1730093431800,-12291.52579593,0.00030371,2]
[340920302,1730093431811,-687.63183088,0.00030371,2]
[340920303,1730093431822,-497.77118329,0.00030371,2]
[340920304,1730093431844,-810.95563597,0.00030371,2]
[340920305,1730093431903,-513.0,0.00030371,2]
[340920306,1730093431962,-9099.11555393,0.00030371,2]
[340920307,1730093431971,-169.33,0.00030427,2]
[340920308,1730093431980,-264.89,0.00030427,2]
[340920309,1730093431990,-200.0,0.00030461,2]
[340920310,1730093431999,-250.0,0.00030479,2]
[340920311,1730093432007,-600.22,0.00030484,2]
[340920312,1730093432017,-250.0,0.00030501,2]
[340920313,1730093432026,-1852.42,0.00030538,2]
[340920314,1730093432035,-722.81,0.00030577,2]
[340920315,1730093432044,-590.4,0.00030597,2]
[340920316,1730093432054,-150.0,0.00030604,7]
[340920317,1730093432062,-239.84,0.00030805,30]
[340920318,1730093432071,-530.69,0.00031248,2]
[340920319,1730093432081,-586.99128915,0.00031991,15]
[340920320,1730093432091,-96549.63069748,0.00032,2]
[340920337,1730093442848,-220.53700604,0.00015242,2]
[340920338,1730093442857,-48.78799441,0.00032,2]
[340920352,1730094158864,150.0,0.00015,3]
[340920363,1730094631826,-174.99,0.00015342,2]
[340920364,1730094631836,-156.11,0.00015342,2]
[340920365,1730094631845,-164.95576905,0.00025,2]
[340920366,1730094631857,-188.0,0.000251,2]
[340920367,1730094631866,-590.4,0.00026909,2]
[340920368,1730094631874,-1761.18273261,0.00026909,2]
[340920369,1730094631886,-5118.74680111,0.00026909,2]
[340920370,1730094631897,-4940.35435108,0.00026909,2]
[340920371,1730094631950,-581.33665256,0.00026909,2]
[340920372,1730094632011,-614.72573488,0.00026909,2]
[340920373,1730094632021,-671.11,0.00026909,2]
[340920380,1730094639908,-1850.33368309,0.00026909,2]
[340920381,1730094639918,-477.62,0.00029461,2]
[340920382,1730094639927,-590.4,0.00030272,2]
[340920383,1730094639937,-409.6,0.00031277,2]
[340920384,1730094639947,-300.11,0.00031304,2]
[340920385,1730094639956,-13466.17821604,0.00031416,2]
[340920418,1730094643211,-3265.01060924,0.00029,10]
[340920419,1730094643268,-1067.6047624,0.00029,10]
[340920420,1730094643280,-455.24917089,0.00029,10]
[340920421,1730094643292,-4002.3379599,0.00029,10]
[340920422,1730094643301,-4888.66482953,0.00031416,2]
[340920423,1730094643326,-5525.15695443,0.00031416,2]
[340920424,1730094643335,-250.0,0.0003153,2]
[340920425,1730094643344,-150.0,0.00031544,7]
[340920426,1730094643353,-477.62,0.00031725,2]
[340920427,1730094643364,-500.0,0.000319,2]
[340920428,1730094643373,-1075.68228504,0.000319,15]
[340920429,1730094643382,-5124.10339716,0.00032,2]
[340920430,1730094643393,-489.18296135,0.00032,2]
[340920431,1730094643404,-362.76485203,0.00032,2]
[340920432,1730094643415,-305.17912248,0.00032,2]
[340920433,1730094643443,-1668.02297108,0.00032,2]
[340920434,1730094643455,-993.12736041,0.00032,2]
[340920435,1730094643466,-87051.63902717,0.00032,2]
[340920436,1730094643477,-371.98047288,0.00032,2]
[340920437,1730094643488,-554.08292991,0.00032,2]
[340920438,1730094643499,-311.7686698,0.00032,2]
[340920439,1730094643515,-484.56846424,0.00032,2]
[340920440,1730094643526,-293.13610406,0.00032,2]
[340920441,1730094643537,-10992.66936184,0.00032,2]
[340920442,1730094643572,-8945.95086052,0.00032,2]
[340920443,1730094643583,-423.79607611,0.00032,2]
[340920444,1730094646024,-773.90142209,0.00032,2]
[340920451,1730095825684,2027.0,8.1e-05,2]
[340920459,1730095832066,-164.95576904,0.00015242,2]
[340920460,1730095832075,-257.04423096,0.00015242,2]
[340920461,1730095832086,-238.99495848,0.00015242,2]
[340920462,1730095832095,-163.73,0.00015342,2]
[340920463,1730095832104,-3.85980813,0.00015592,2]
[340920464,1730095832185,-146.14019187,0.00015592,2]
[340920465,1730095832194,-496.03918942,0.00022757,2]
[340920466,1730095832203,-1524.82061871,0.00024449,2]
[340920467,1730095832214,-3371.87829229,0.00024449,2]
[340920468,1730095832224,-159.46,0.00024573,2]
[340920469,1730095832233,-15747.09933764,0.00024691,2]
[340920470,1730095832242,-150.99,0.00026693,2]
[340920471,1730095832252,-570.83,0.00028356,2]
[340920472,1730095832261,-150.0,0.00029386,7]
[340920473,1730095832270,-1154.06,0.00029466,2]
[340920474,1730095832279,-233.87,0.000295,2]
[340920475,1730095832288,-3225.47687334,0.00030179,2]
[340920476,1730095835739,-4781.02268136,0.00030179,2]
[340920477,1730095835750,-157.7704453,0.00030179,2]
[340920478,1730095835760,-496.03918942,0.00030272,2]
[340920479,1730095835769,-327.68,0.00030372,2]
[340920480,1730095835779,-6425.22968899,0.00030598,2]
[340920481,1730095835795,-2988.54533529,0.00030598,2]
[340920482,1730095835806,-4750.05497572,0.00030598,2]
[340920483,1730095835815,-570.83,0.0003062,2]
[340920484,1730095835825,-278.51,0.00030638,2]
[340920485,1730095835834,-250.0,0.00030721,2]
[340920486,1730095835845,-2504.70011037,0.00030885,20]
[340920487,1730095835854,-3164.90491391,0.00030907,2]
[340920488,1730095835865,-123.09508609,0.00030907,2]
[340920489,1730095835875,-1007.12053697,0.00031,2]
[340920490,1730095835884,-323.3512606,0.00031,10]
[340920491,1730095835893,-81.18311635,0.00031173,2]
[340920492,1730095835904,-591.13688365,0.00031173,2]
[340920493,1730095835914,-218.3482257,0.00031245,2]
[340920495,1730095835923,-22.56763613,0.00031487,2]
[340920506,1730095838096,-144.00236387,0.00031487,2]
[340920507,1730095838106,-3337.78100748,0.0003168,2]
[340920508,1730095838115,-500.0,0.0003168,2]
[340920509,1730095838124,-500.0,0.0003168,2]
[340920510,1730095838134,-363.69334728,0.000319,2]
[340920511,1730095838142,-201.62243009,0.00031973,2]
[340920512,1730095838151,-535.258924,0.0003199,7]
[340920513,1730095838370,-4679.08007576,0.0003199,7]
[340920514,1730095838380,-152.75673657,0.00031999,2]
[340920515,1730095838389,-537.98406089,0.00031999,2]
[340920516,1730095838398,-6102.84217922,0.00032,2]
[340920517,1730095838407,-195.71774672,0.00032,2]
[340920518,1730095838416,-2928.24012762,0.00032,2]
[340920519,1730095838427,-53523.75987238,0.00032,2]
[340920520,1730095838436,-397.0,0.00032,16]
[340920521,1730095838445,-7074.57576832,0.00032,2]
[340920561,1730095840062,-218.34822571,0.00031775,2]
[340920562,1730095840072,-209.40416505,0.00032,2]
[340920563,1730095840082,-801.0,0.00032,2]
[340920564,1730095840121,-9559.76261273,0.00032,2]
[340920565,1730095840182,-10071.27836597,0.00032,2]
[340920566,1730095840193,-5616.14294661,0.00032,2]
[340920567,1730095840244,-616.775001,0.00032,2]
[340920586,1730095846340,-248.0,0.000247,2]
[340920587,1730095846349,-118.18515472,0.00032,2]
[340920615,1730097032236,-377.08391433,0.00014724,2]
[340920616,1730097032438,-1464.14137376,0.0001475,2]
[340920617,1730097032455,-912.49291624,0.0001475,2]
[340920618,1730097032465,-5802.50708376,0.00014824,2]
[340920619,1730097032487,-720.36814939,0.00014824,2]
[340920620,1730097032498,-3442.740027,0.00014824,2]
[340920621,1730097032512,-20984.17071515,0.00014824,2]
[340920622,1730097032521,-500.0,0.00014973,2]
[340920623,1730097032530,-150.0,0.00014999,2]
[340920624,1730097032539,-106173.06770232,0.00015,2]
[340920625,1730097032548,-75856.76158255,0.00015,2]
[340920627,1730097032560,-392.38527422,0.00015,2]
[340920630,1730097032574,-5025.56491331,0.00015,2]